[Event "Late-Titled-Tuesday-Blitz-June-04-2024"]
[Site "Chess.com"]
[Date "2024.06.04"]
[Round "9"]
[White "dolynachess"]
[Black "giovannibrandao7"]
[Result "1-0"]
[WhiteElo "2505"]
[BlackElo "2348"]
[TimeControl "180+1"]
[EndTime "15:39:39 PDT"]
[Termination "dolynachess won by resignation"]

1. d4 {[%clk 0:03:00.9]} 1... Nf6 {[%clk 0:03:00.3]} 2. c4 {[%clk 0:03:00.7]}
2... g6 {[%clk 0:03:00.8]} 3. Nc3 {[%clk 0:02:59.5]} 3... d5 {[%clk 0:03:01.1]}
4. cxd5 {[%clk 0:03:00.4]} 4... Nxd5 {[%clk 0:03:01.6]} 5. e4 {[%clk 0:03:01.2]}
5... Nxc3 {[%clk 0:03:02.2]} 6. bxc3 {[%clk 0:03:01.9]} 6... Bg7 {[%clk
0:03:02.8]} 7. Bc4 {[%clk 0:03:00.9]} 7... c5 {[%clk 0:03:03.1]} 8. Ne2 {[%clk
0:03:01.1]} 8... Nc6 {[%clk 0:03:02]} 9. Be3 {[%clk 0:03:01.2]} 9... cxd4 {[%clk
0:02:58.3]} 10. cxd4 {[%clk 0:03:02.1]} 10... Qa5+ {[%clk 0:02:58.2]} 11. Kf1
{[%clk 0:02:59.9]} 11... O-O {[%clk 0:02:56.9]} 12. h4 {[%clk 0:02:57.1]} 12...
h5 {[%clk 0:02:46.2]} 13. f3 {[%clk 0:02:56.4]} 13... Bd7 {[%clk 0:02:33.8]} 14.
Kf2 {[%clk 0:02:53.1]} 14... Rac8 {[%clk 0:02:33.1]} 15. Rc1 {[%clk 0:02:52.3]}
15... Nb4 {[%clk 0:02:22.4]} 16. Qd2 {[%clk 0:02:26.1]} 16... Bb5 {[%clk
0:01:55.9]} 17. Bxb5 {[%clk 0:01:31.8]} 17... Qxb5 {[%clk 0:01:56.8]} 18. Rb1
{[%clk 0:01:06.4]} 18... a5 {[%clk 0:01:56.2]} 19. a3 {[%clk 0:01:06.4]} 19...
Rc2 {[%clk 0:01:50.2]} 20. Qxc2 {[%clk 0:01:05.8]} 1-0

[Event "Late-Titled-Tuesday-Blitz-June-04-2024"]
[Site "Chess.com"]
[Date "2024.06.04"]
[Round "9"]
[White "hansen"]
[Black "xasid81"]
[Result "1-0"]
[WhiteElo "3025"]
[BlackElo "2631"]
[TimeControl "180+1"]
[EndTime "15:40:01 PDT"]
[Termination "hansen won by resignation"]

1. e4 {[%clk 0:02:32.6]} 1... a6 {[%clk 0:03:00.9]} 2. d4 {[%clk 0:02:30.2]}
2... e6 {[%clk 0:03:00.1]} 3. Bd3 {[%clk 0:02:30.7]} 3... d5 {[%clk 0:03:00.7]}
4. e5 {[%clk 0:02:30.6]} 4... c5 {[%clk 0:03:00.6]} 5. c3 {[%clk 0:02:31.3]}
5... Nc6 {[%clk 0:03:01.1]} 6. Nf3 {[%clk 0:02:30]} 6... f6 {[%clk 0:03:00.2]}
7. O-O {[%clk 0:02:25]} 7... fxe5 {[%clk 0:03:00]} 8. dxe5 {[%clk 0:02:24.5]}
8... Qc7 {[%clk 0:02:53.4]} 9. c4 {[%clk 0:02:22.5]} 9... Nge7 {[%clk 0:02:51]}
10. Nc3 {[%clk 0:02:21.3]} 10... d4 {[%clk 0:02:46.6]} 11. Ne4 {[%clk 0:02:20]}
11... Ng6 {[%clk 0:02:46.7]} 12. Re1 {[%clk 0:02:14.8]} 12... Ncxe5 {[%clk
0:02:37.3]} 13. Nxe5 {[%clk 0:02:12.9]} 13... Qxe5 {[%clk 0:02:26.4]} 14. Ng5
{[%clk 0:01:32.3]} 14... Qf6 {[%clk 0:02:22]} 15. Qh5 {[%clk 0:01:32.8]} 15...
Kd8 {[%clk 0:01:33.7]} 16. Bxg6 {[%clk 0:00:56.6]} 16... Qxg6 {[%clk 0:01:32.2]}
17. Qxg6 {[%clk 0:00:56.7]} 17... hxg6 {[%clk 0:01:33.1]} 18. Nf7+ {[%clk
0:00:57.4]} 18... Ke7 {[%clk 0:01:34]} 19. Nxh8 {[%clk 0:00:58.1]} 19... Kf6
{[%clk 0:01:34.7]} 20. h4 {[%clk 0:00:57.9]} 1-0

[Event "Late-Titled-Tuesday-Blitz-June-04-2024"]
[Site "Chess.com"]
[Date "2024.06.04"]
[Round "9"]
[White "katharinareinecke"]
[Black "Kostukov_Alex"]
[Result "0-1"]
[WhiteElo "1993"]
[BlackElo "2304"]
[TimeControl "180+1"]
[EndTime "15:40:01 PDT"]
[Termination "Kostukov_Alex won by resignation"]

1. e4 {[%clk 0:03:00.9]} 1... c5 {[%clk 0:02:55.2]} 2. Nf3 {[%clk 0:02:59.9]}
2... g6 {[%clk 0:02:55.4]} 3. g3 {[%clk 0:02:59.4]} 3... Bg7 {[%clk 0:02:54.5]}
4. Bg2 {[%clk 0:02:59.6]} 4... Nc6 {[%clk 0:02:53.5]} 5. O-O {[%clk 0:02:54.7]}
5... e5 {[%clk 0:02:50.8]} 6. c4 {[%clk 0:02:46.1]} 6... Nge7 {[%clk 0:02:47.6]}
7. Nc3 {[%clk 0:02:45.2]} 7... O-O {[%clk 0:02:46.1]} 8. d3 {[%clk 0:02:42]}
8... d6 {[%clk 0:02:40.8]} 9. Nh4 {[%clk 0:02:40]} 9... Nd4 {[%clk 0:02:33.9]}
10. f4 {[%clk 0:02:33.2]} 10... f5 {[%clk 0:02:28]} 11. exf5 {[%clk 0:02:28.4]}
11... Nexf5 {[%clk 0:01:56.4]} 12. Nxf5 {[%clk 0:02:25.7]} 12... Bxf5 {[%clk
0:01:51.1]} 13. Bxb7 {[%clk 0:02:20.6]} 13... Rb8 {[%clk 0:01:14.8]} 14. Bd5+
{[%clk 0:02:19.5]} 14... Kh8 {[%clk 0:01:14.7]} 15. Ne4 {[%clk 0:02:18.3]} 15...
Bh3 {[%clk 0:01:00.5]} 16. Rf2 {[%clk 0:02:13.5]} 16... exf4 {[%clk 0:00:56]}
17. Bxf4 {[%clk 0:02:10.9]} 17... Be5 {[%clk 0:00:45.2]} 18. Qf1 {[%clk
0:01:56.2]} 18... Bxf1 {[%clk 0:00:37.5]} 0-1

[Event "Late-Titled-Tuesday-Blitz-June-04-2024"]
[Site "Chess.com"]
[Date "2024.06.04"]
[Round "9"]
[White "TigrVShlyape"]
[Black "Flawless_Fighter"]
[Result "1-0"]
[WhiteElo "2917"]
[BlackElo "2692"]
[TimeControl "180+1"]
[EndTime "15:40:30 PDT"]
[Termination "TigrVShlyape won by resignation"]

1. d4 {[%clk 0:03:00.9]} 1... Nf6 {[%clk 0:02:59.9]} 2. Bf4 {[%clk 0:02:58.9]}
2... d5 {[%clk 0:02:59.4]} 3. e3 {[%clk 0:02:55.3]} 3... c5 {[%clk 0:02:59.7]}
4. c3 {[%clk 0:02:55.2]} 4... Nc6 {[%clk 0:02:59.3]} 5. Nd2 {[%clk 0:02:55.5]}
5... Bf5 {[%clk 0:02:57.1]} 6. Qb3 {[%clk 0:02:54.9]} 6... Qd7 {[%clk
0:02:46.6]} 7. a4 {[%clk 0:02:54.5]} 7... e6 {[%clk 0:02:46.1]} 8. Ngf3 {[%clk
0:02:54.1]} 8... a6 {[%clk 0:02:41.7]} 9. Be2 {[%clk 0:02:51.6]} 9... h6 {[%clk
0:02:41]} 10. O-O {[%clk 0:02:49.8]} 10... Be7 {[%clk 0:02:38.2]} 11. h3 {[%clk
0:02:48.6]} 11... O-O {[%clk 0:02:37.7]} 12. Qa2 {[%clk 0:02:36.7]} 12... Rfc8
{[%clk 0:02:36.8]} 13. Rfc1 {[%clk 0:02:33.6]} 13... Ne4 {[%clk 0:02:33.1]} 14.
Nxe4 {[%clk 0:02:32.6]} 14... Bxe4 {[%clk 0:02:32.9]} 15. Nd2 {[%clk 0:02:33]}
15... Bg6 {[%clk 0:02:30.6]} 16. a5 {[%clk 0:02:32.5]} 16... Bd6 {[%clk
0:02:23.8]} 17. Bxd6 {[%clk 0:02:31.7]} 17... Qxd6 {[%clk 0:02:24.2]} 18. Qa3
{[%clk 0:02:31.9]} 18... Nb8 {[%clk 0:02:09.9]} 19. c4 {[%clk 0:02:26.4]} 19...
Nd7 {[%clk 0:02:03.8]} 20. cxd5 {[%clk 0:02:25.9]} 20... exd5 {[%clk 0:02:01]}
21. Nb3 {[%clk 0:02:24.6]} 21... Rc7 {[%clk 0:01:44.3]} 22. Nxc5 {[%clk
0:02:23.6]} 22... Nxc5 {[%clk 0:01:36.4]} 23. Rxc5 {[%clk 0:02:22.7]} 23... Rxc5
{[%clk 0:01:34.6]} 24. Qxc5 {[%clk 0:02:22.2]} 24... Qe6 {[%clk 0:01:20.2]} 25.
Rc1 {[%clk 0:02:20.6]} 25... Be4 {[%clk 0:01:19.6]} 26. Qc7 {[%clk 0:02:17.7]}
26... Qg6 {[%clk 0:01:17.2]} 27. Bf1 {[%clk 0:02:17.8]} 27... Re8 {[%clk
0:01:11.9]} 28. Qxb7 {[%clk 0:02:16.5]} 28... Re6 {[%clk 0:01:12.6]} 29. Rc8+
{[%clk 0:02:15.1]} 29... Kh7 {[%clk 0:01:12.8]} 30. Qb8 {[%clk 0:02:13.3]} 30...
Qg5 {[%clk 0:01:12.8]} 31. Rh8+ {[%clk 0:02:11.3]} 31... Kg6 {[%clk 0:01:13.2]}
32. b4 {[%clk 0:02:06]} 32... Rc6 {[%clk 0:01:10]} 33. Rc8 {[%clk 0:02:05.4]}
33... Rf6 {[%clk 0:01:03.5]} 34. Qg3 {[%clk 0:01:47.7]} 34... Qxg3 {[%clk
0:01:02.9]} 35. fxg3 {[%clk 0:01:48.4]} 1-0

[Event "Late-Titled-Tuesday-Blitz-June-04-2024"]
[Site "Chess.com"]
[Date "2024.06.04"]
[Round "9"]
[White "YellowJacek"]
[Black "LUISMIGUELOV"]
[Result "1-0"]
[WhiteElo "2376"]
[BlackElo "2218"]
[TimeControl "180+1"]
[EndTime "15:40:39 PDT"]
[Termination "YellowJacek won by resignation"]

1. e4 {[%clk 0:02:59]} 1... d6 {[%clk 0:02:56.5]} 2. d4 {[%clk 0:02:58]} 2... g6
{[%clk 0:02:56.9]} 3. Nc3 {[%clk 0:02:56.1]} 3... c6 {[%clk 0:02:56.4]} 4. f4
{[%clk 0:02:55]} 4... b5 {[%clk 0:02:56.2]} 5. Nf3 {[%clk 0:02:45.8]} 5... b4
{[%clk 0:02:55.9]} 6. Na4 {[%clk 0:02:45.6]} 6... Nd7 {[%clk 0:02:52.8]} 7. c4
{[%clk 0:02:41.5]} 7... bxc3 {[%clk 0:02:50.5]} 8. Nxc3 {[%clk 0:02:40.5]} 8...
Ngf6 {[%clk 0:02:47.9]} 9. e5 {[%clk 0:02:39.5]} 9... Nd5 {[%clk 0:02:47.5]} 10.
Nxd5 {[%clk 0:02:39.2]} 10... cxd5 {[%clk 0:02:47.2]} 11. Bd3 {[%clk 0:02:38.3]}
11... e6 {[%clk 0:02:42.1]} 12. O-O {[%clk 0:02:36.8]} 12... dxe5 {[%clk
0:02:36.3]} 13. fxe5 {[%clk 0:02:34.8]} 13... Bg7 {[%clk 0:02:35.7]} 14. Qe1
{[%clk 0:02:29.3]} 14... O-O {[%clk 0:02:34]} 15. Be3 {[%clk 0:02:22.4]} 15...
a5 {[%clk 0:02:33.5]} 16. Qg3 {[%clk 0:02:18.8]} 16... Ba6 {[%clk 0:02:30.3]}
17. Rad1 {[%clk 0:02:16.2]} 17... Bxd3 {[%clk 0:02:28.6]} 18. Rxd3 {[%clk
0:02:17.1]} 18... Qb6 {[%clk 0:02:27.4]} 19. b3 {[%clk 0:02:16.6]} 19... Qa6
{[%clk 0:02:23.5]} 20. Rd2 {[%clk 0:02:12.6]} 20... a4 {[%clk 0:02:23]} 21. bxa4
{[%clk 0:02:11.5]} 21... Qxa4 {[%clk 0:02:22.4]} 22. Qh4 {[%clk 0:02:10.1]}
22... Nb6 {[%clk 0:02:18.2]} 23. Bh6 {[%clk 0:02:07.2]} 23... Nc4 {[%clk
0:02:15.5]} 24. Re2 {[%clk 0:02:03]} 24... Ra7 {[%clk 0:01:39.9]} 25. Ng5 {[%clk
0:01:59.7]} 25... Bxe5 {[%clk 0:01:07.2]} 26. Bxf8 {[%clk 0:01:47.8]} 26...
Bxd4+ {[%clk 0:01:01.6]} 27. Qxd4 {[%clk 0:01:45.9]} 27... Kxf8 {[%clk
0:01:00.9]} 28. Qh8+ {[%clk 0:01:44]} 28... Ke7 {[%clk 0:00:58.8]} 29. Rxf7+
{[%clk 0:01:44.9]} 29... Kd6 {[%clk 0:00:58.7]} 30. Qb8+ {[%clk 0:01:39.6]}
30... Kc6 {[%clk 0:00:52.3]} 31. Rxe6+ {[%clk 0:01:37.2]} 31... Kc5 {[%clk
0:00:52.3]} 32. Qxa7+ {[%clk 0:01:35.4]} 32... Qxa7 {[%clk 0:00:50.9]} 33. Rxa7
{[%clk 0:01:36.3]} 1-0

[Event "Late-Titled-Tuesday-Blitz-June-04-2024"]
[Site "Chess.com"]
[Date "2024.06.04"]
[Round "9"]
[White "Rital44"]
[Black "Smoking_Crow"]
[Result "0-1"]
[WhiteElo "2687"]
[BlackElo "2571"]
[TimeControl "180+1"]
[EndTime "15:41:19 PDT"]
[Termination "Smoking_Crow won by resignation"]

1. d4 {[%clk 0:02:56.8]} 1... Nf6 {[%clk 0:02:57.2]} 2. Nc3 {[%clk 0:02:56]}
2... d5 {[%clk 0:02:56.5]} 3. Bf4 {[%clk 0:02:55.5]} 3... e6 {[%clk 0:02:55.1]}
4. Nb5 {[%clk 0:02:55]} 4... Na6 {[%clk 0:02:53.5]} 5. e3 {[%clk 0:02:53.9]}
5... c6 {[%clk 0:02:50.1]} 6. Nc3 {[%clk 0:02:53.2]} 6... c5 {[%clk 0:02:50.3]}
7. Nb5 {[%clk 0:02:50.9]} 7... Be7 {[%clk 0:02:44.5]} 8. c3 {[%clk 0:02:42.8]}
8... O-O {[%clk 0:02:40.2]} 9. Be2 {[%clk 0:02:40.8]} 9... Bd7 {[%clk
0:02:37.8]} 10. a4 {[%clk 0:02:40.2]} 10... Bxb5 {[%clk 0:02:19.9]} 11. axb5
{[%clk 0:02:38.7]} 11... Nc7 {[%clk 0:02:19.5]} 12. h3 {[%clk 0:02:36.4]} 12...
c4 {[%clk 0:02:17.6]} 13. Qa4 {[%clk 0:02:29.6]} 13... Bd6 {[%clk 0:02:13.1]}
14. b3 {[%clk 0:02:13.5]} 14... Bxf4 {[%clk 0:02:10.8]} 15. exf4 {[%clk
0:02:13.5]} 15... cxb3 {[%clk 0:02:09.1]} 16. Qxb3 {[%clk 0:02:14.4]} 16... Qd6
{[%clk 0:02:06.3]} 17. g3 {[%clk 0:02:12.8]} 17... a6 {[%clk 0:02:02.2]} 18. b6
{[%clk 0:02:03.7]} 18... Nb5 {[%clk 0:02:01.5]} 19. Bxb5 {[%clk 0:01:56.6]}
19... axb5 {[%clk 0:01:57.4]} 20. Rb1 {[%clk 0:01:49.8]} 20... Ne4 {[%clk
0:01:51.1]} 21. Ne2 {[%clk 0:01:46.2]} 21... Qxb6 {[%clk 0:01:48.6]} 22. f3
{[%clk 0:01:42.6]} 22... Nd6 {[%clk 0:01:48.1]} 23. O-O {[%clk 0:01:36.3]} 23...
Qc6 {[%clk 0:01:44.9]} 24. Rfc1 {[%clk 0:01:24.7]} 24... Ra5 {[%clk 0:01:43]}
25. Rc2 {[%clk 0:01:21.9]} 25... Rfa8 {[%clk 0:01:42.3]} 26. Nc1 {[%clk
0:01:20.1]} 26... Nc4 {[%clk 0:01:40.2]} 27. Nd3 {[%clk 0:00:51.7]} 27... Na3
{[%clk 0:01:36.4]} 28. Nb4 {[%clk 0:00:46.9]} 28... Qc4 {[%clk 0:01:32.2]} 29.
Rcb2 {[%clk 0:00:46.3]} 29... Nxb1 {[%clk 0:01:27.3]} 30. Rxb1 {[%clk
0:00:45.6]} 30... Ra1 {[%clk 0:01:22.6]} 31. Kf2 {[%clk 0:00:45]} 31... Rxb1
{[%clk 0:01:19.2]} 32. Qxb1 {[%clk 0:00:45.9]} 32... Qxc3 {[%clk 0:01:18.9]} 33.
g4 {[%clk 0:00:46]} 33... Ra1 {[%clk 0:01:10.5]} 34. Nxd5 {[%clk 0:00:41.4]}
34... Qxd4+ {[%clk 0:01:08.9]} 0-1

[Event "Late-Titled-Tuesday-Blitz-June-04-2024"]
[Site "Chess.com"]
[Date "2024.06.04"]
[Round "9"]
[White "cthake"]
[Black "FischerKasparow"]
[Result "0-1"]
[WhiteElo "1750"]
[BlackElo "2093"]
[TimeControl "180+1"]
[EndTime "15:41:22 PDT"]
[Termination "FischerKasparow won by resignation"]

1. e4 {[%clk 0:03:00.9]} 1... e6 {[%clk 0:02:59.4]} 2. b3 {[%clk 0:02:53.1]}
2... d5 {[%clk 0:02:58]} 3. exd5 {[%clk 0:02:50.8]} 3... exd5 {[%clk 0:02:57.3]}
4. Bb2 {[%clk 0:02:50.9]} 4... Nf6 {[%clk 0:02:57.3]} 5. Nf3 {[%clk 0:02:43.4]}
5... Be7 {[%clk 0:02:56.5]} 6. Be2 {[%clk 0:02:39.7]} 6... O-O {[%clk 0:02:57]}
7. O-O {[%clk 0:02:39.5]} 7... c5 {[%clk 0:02:57.2]} 8. d3 {[%clk 0:02:38.8]}
8... Nc6 {[%clk 0:02:56.9]} 9. Nbd2 {[%clk 0:02:37.2]} 9... Bg4 {[%clk
0:02:53.4]} 10. h3 {[%clk 0:02:36.5]} 10... Bh5 {[%clk 0:02:52.7]} 11. Nh2
{[%clk 0:02:34.2]} 11... Bxe2 {[%clk 0:02:50.1]} 12. Qxe2 {[%clk 0:02:33.2]}
12... Re8 {[%clk 0:02:50.8]} 13. Qf3 {[%clk 0:02:25.6]} 13... Rc8 {[%clk
0:02:45]} 14. Ng4 {[%clk 0:02:23.9]} 14... Nxg4 {[%clk 0:02:44.1]} 15. Qxg4
{[%clk 0:02:23.6]} 15... Bf6 {[%clk 0:02:43.4]} 16. Bxf6 {[%clk 0:02:20.5]}
16... Qxf6 {[%clk 0:02:44.3]} 17. Nf3 {[%clk 0:02:17.2]} 17... Nb4 {[%clk
0:02:34.2]} 18. Rfc1 {[%clk 0:02:01.3]} 18... Rcd8 {[%clk 0:02:33.1]} 19. a3
{[%clk 0:02:00]} 19... Nc6 {[%clk 0:02:32.6]} 20. Re1 {[%clk 0:01:55.3]} 20...
h6 {[%clk 0:02:29.7]} 21. Kf1 {[%clk 0:01:46.9]} 21... Ne5 {[%clk 0:02:20.1]}
22. Nxe5 {[%clk 0:01:15.7]} 22... Rxe5 {[%clk 0:02:19.6]} 23. Rxe5 {[%clk
0:01:09.2]} 23... Qxe5 {[%clk 0:02:20.5]} 24. Re1 {[%clk 0:01:06.3]} 24... Qc3
{[%clk 0:02:17.1]} 25. Qe2 {[%clk 0:01:00.8]} 25... b5 {[%clk 0:02:03.6]} 26.
Qe7 {[%clk 0:00:58.1]} 26... Rf8 {[%clk 0:02:02.7]} 27. Qxa7 {[%clk 0:00:57.4]}
27... Qxc2 {[%clk 0:02:00.4]} 28. a4 {[%clk 0:00:53.4]} 28... Qxd3+ {[%clk
0:01:59.7]} 29. Kg1 {[%clk 0:00:52.1]} 29... Qxb3 {[%clk 0:01:56.6]} 30. Qxc5
{[%clk 0:00:49.8]} 30... bxa4 {[%clk 0:01:56.3]} 31. Re5 {[%clk 0:00:37.4]}
31... a3 {[%clk 0:01:40.9]} 32. Rxd5 {[%clk 0:00:36.9]} 32... a2 {[%clk
0:01:36.6]} 33. Qa5 {[%clk 0:00:15.3]} 33... Qb1+ {[%clk 0:01:33.8]} 34. Kh2
{[%clk 0:00:13.9]} 34... a1=Q {[%clk 0:01:33.8]} 0-1

[Event "Late-Titled-Tuesday-Blitz-June-04-2024"]
[Site "Chess.com"]
[Date "2024.06.04"]
[Round "9"]
[White "ImportedItalianMaple"]
[Black "FXDon77"]
[Result "0-1"]
[WhiteElo "2583"]
[BlackElo "2876"]
[TimeControl "180+1"]
[EndTime "15:41:23 PDT"]
[Termination "FXDon77 won by resignation"]

1. e4 {[%clk 0:02:57.7]} 1... c5 {[%clk 0:02:59.8]} 2. Nf3 {[%clk 0:02:57.7]}
2... Nc6 {[%clk 0:02:59]} 3. Bb5 {[%clk 0:02:58]} 3... e6 {[%clk 0:02:58.7]} 4.
Bxc6 {[%clk 0:02:57.1]} 4... bxc6 {[%clk 0:02:58.5]} 5. b3 {[%clk 0:02:57.5]}
5... Qc7 {[%clk 0:02:58.4]} 6. Bb2 {[%clk 0:02:56.7]} 6... Ne7 {[%clk
0:02:58.6]} 7. e5 {[%clk 0:02:35.3]} 7... Nf5 {[%clk 0:02:56.5]} 8. Qe2 {[%clk
0:02:32.6]} 8... d5 {[%clk 0:02:49.1]} 9. exd6 {[%clk 0:02:27.4]} 9... Bxd6
{[%clk 0:02:49.1]} 10. Na3 {[%clk 0:02:27.2]} 10... O-O {[%clk 0:02:46.2]} 11.
Nc4 {[%clk 0:02:26.9]} 11... Ba6 {[%clk 0:02:40.3]} 12. d3 {[%clk 0:02:20.1]}
12... Bxc4 {[%clk 0:02:31.9]} 13. dxc4 {[%clk 0:02:20.2]} 13... e5 {[%clk
0:02:29.6]} 14. O-O-O {[%clk 0:02:08.3]} 14... Rae8 {[%clk 0:02:23.1]} 15. g4
{[%clk 0:01:34]} 15... Nd4 {[%clk 0:02:22.8]} 16. Nxd4 {[%clk 0:01:34.4]} 16...
exd4 {[%clk 0:02:15.1]} 17. Qd3 {[%clk 0:01:34.4]} 17... f5 {[%clk 0:02:13.8]}
18. h3 {[%clk 0:01:24.6]} 18... Qf7 {[%clk 0:02:08.2]} 19. Kb1 {[%clk
0:01:23.4]} 19... fxg4 {[%clk 0:02:01.6]} 20. hxg4 {[%clk 0:01:24.3]} 20... g6
{[%clk 0:02:02.2]} 21. Rdf1 {[%clk 0:01:24.3]} 21... Qf3 {[%clk 0:02:00.2]} 22.
Rh3 {[%clk 0:01:06.7]} 22... Qxg4 {[%clk 0:01:50]} 23. Rfh1 {[%clk 0:01:06.3]}
23... Re7 {[%clk 0:01:39.4]} 24. Bc1 {[%clk 0:01:02]} 24... Rxf2 {[%clk
0:01:35.6]} 25. Rh4 {[%clk 0:00:55.9]} 25... Qe2 {[%clk 0:01:31.2]} 26. Rxh7
{[%clk 0:00:28.9]} 26... Rxh7 {[%clk 0:01:18.3]} 27. Qxg6+ {[%clk 0:00:28.9]}
27... Rg7 {[%clk 0:01:16.7]} 0-1

[Event "Late-Titled-Tuesday-Blitz-June-04-2024"]
[Site "Chess.com"]
[Date "2024.06.04"]
[Round "9"]
[White "Bryanl106"]
[Black "Bilan_Danila"]
[Result "1-0"]
[WhiteElo "2725"]
[BlackElo "2570"]
[TimeControl "180+1"]
[EndTime "15:41:25 PDT"]
[Termination "Bryanl106 won on time"]

1. e4 {[%clk 0:03:00.9]} 1... c6 {[%clk 0:03:00.1]} 2. Nf3 {[%clk 0:03:00.4]}
2... d5 {[%clk 0:03:00.7]} 3. Nc3 {[%clk 0:03:00.9]} 3... Nf6 {[%clk 0:02:59.2]}
4. e5 {[%clk 0:02:59.5]} 4... Ne4 {[%clk 0:02:59.3]} 5. Ne2 {[%clk 0:03:00.1]}
5... Bg4 {[%clk 0:02:57.8]} 6. d4 {[%clk 0:02:46.7]} 6... c5 {[%clk 0:02:51]} 7.
h3 {[%clk 0:02:45.8]} 7... Bh5 {[%clk 0:02:38.8]} 8. g4 {[%clk 0:02:42.3]} 8...
Bg6 {[%clk 0:02:38.6]} 9. Nf4 {[%clk 0:02:35.6]} 9... e6 {[%clk 0:02:28]} 10.
Bd3 {[%clk 0:02:15.9]} 10... Nc6 {[%clk 0:02:18.9]} 11. c3 {[%clk 0:02:04.9]}
11... cxd4 {[%clk 0:01:56.2]} 12. cxd4 {[%clk 0:02:05.8]} 12... Qb6 {[%clk
0:01:39]} 13. O-O {[%clk 0:01:55.5]} 13... Be7 {[%clk 0:01:23.8]} 14. Be3 {[%clk
0:01:51.8]} 14... h5 {[%clk 0:00:47]} 15. Nxg6 {[%clk 0:01:46.8]} 15... fxg6
{[%clk 0:00:47.9]} 16. Nd2 {[%clk 0:01:37.3]} 16... O-O-O {[%clk 0:00:35.5]} 17.
Nxe4 {[%clk 0:01:25.3]} 17... dxe4 {[%clk 0:00:35]} 18. Bxe4 {[%clk 0:01:26.2]}
18... Nxd4 {[%clk 0:00:28.9]} 19. Rc1+ {[%clk 0:01:25]} 19... Kb8 {[%clk
0:00:28.7]} 20. Rc4 {[%clk 0:01:23.2]} 20... Bc5 {[%clk 0:00:06.6]} 21. b4
{[%clk 0:01:14.6]} 21... Bxb4 {[%clk 0:00:01.4]} 22. Rxd4 {[%clk 0:01:14.5]}
22... Bc5 {[%clk 0:00:01.4]} 23. Rxd8+ {[%clk 0:01:13.7]} 23... Rxd8 {[%clk
0:00:02.3]} 24. Bxc5 {[%clk 0:01:14.1]} 1-0

[Event "Late-Titled-Tuesday-Blitz-June-04-2024"]
[Site "Chess.com"]
[Date "2024.06.04"]
[Round "9"]
[White "Kiborg95"]
[Black "SahaNeelash"]
[Result "1-0"]
[WhiteElo "2916"]
[BlackElo "2688"]
[TimeControl "180+1"]
[EndTime "15:41:28 PDT"]
[Termination "Kiborg95 won by resignation"]

1. e4 {[%clk 0:03:00.9]} 1... c6 {[%clk 0:01:35.5]} 2. d4 {[%clk 0:03:00.4]}
2... d5 {[%clk 0:01:35.7]} 3. e5 {[%clk 0:03:00.7]} 3... Bf5 {[%clk 0:01:35.4]}
4. h4 {[%clk 0:03:01.1]} 4... h5 {[%clk 0:01:34.9]} 5. c4 {[%clk 0:03:01.7]}
5... e6 {[%clk 0:01:34.6]} 6. Nc3 {[%clk 0:03:02.3]} 6... Ne7 {[%clk 0:01:34.3]}
7. Nge2 {[%clk 0:03:02.9]} 7... dxc4 {[%clk 0:01:34.3]} 8. Ng3 {[%clk
0:03:02.9]} 8... Bg6 {[%clk 0:01:34.4]} 9. Bxc4 {[%clk 0:03:00.1]} 9... Nd7
{[%clk 0:01:34.9]} 10. Bg5 {[%clk 0:03:00.4]} 10... Nb6 {[%clk 0:01:34.9]} 11.
Be2 {[%clk 0:02:52.4]} 11... Qd7 {[%clk 0:01:31.9]} 12. a4 {[%clk 0:02:45.9]}
12... Nf5 {[%clk 0:01:21]} 13. Nxf5 {[%clk 0:02:40.2]} 13... Bxf5 {[%clk
0:01:21.9]} 14. a5 {[%clk 0:02:39.4]} 14... Nd5 {[%clk 0:01:21.5]} 15. O-O
{[%clk 0:02:37.2]} 15... Be7 {[%clk 0:01:18.4]} 16. Bxe7 {[%clk 0:02:21.6]}
16... Qxe7 {[%clk 0:01:17.5]} 17. Nxd5 {[%clk 0:02:20.3]} 17... cxd5 {[%clk
0:01:17.1]} 18. Qa4+ {[%clk 0:02:18.7]} 18... Kf8 {[%clk 0:01:17]} 19. g3 {[%clk
0:02:19.2]} 19... g5 {[%clk 0:01:16.9]} 20. hxg5 {[%clk 0:02:14.3]} 20... Qxg5
{[%clk 0:01:16.5]} 21. Qa3+ {[%clk 0:01:42.3]} 21... Kg7 {[%clk 0:01:14.1]} 22.
f4 {[%clk 0:01:42.8]} 22... Qg6 {[%clk 0:01:13.6]} 23. Kf2 {[%clk 0:01:43.4]}
23... Rac8 {[%clk 0:01:07.2]} 24. Rac1 {[%clk 0:01:42.4]} 24... Rxc1 {[%clk
0:00:59.7]} 25. Rxc1 {[%clk 0:01:43.3]} 25... h4 {[%clk 0:01:00.3]} 26. g4
{[%clk 0:01:39.9]} 26... h3 {[%clk 0:00:54.9]} 27. Rh1 {[%clk 0:01:01.1]} 27...
Bxg4 {[%clk 0:00:52.8]} 28. Bxg4 {[%clk 0:00:54.9]} 28... Qxg4 {[%clk
0:00:53.7]} 29. Rg1 {[%clk 0:00:54.1]} 1-0

[Event "Late-Titled-Tuesday-Blitz-June-04-2024"]
[Site "Chess.com"]
[Date "2024.06.04"]
[Round "9"]
[White "JoakimVonAnd"]
[Black "wonderfultime"]
[Result "1-0"]
[WhiteElo "2795"]
[BlackElo "3020"]
[TimeControl "180+1"]
[EndTime "15:41:43 PDT"]
[Termination "JoakimVonAnd won by resignation"]

1. d4 {[%clk 0:03:00.9]} 1... d5 {[%clk 0:03:00.2]} 2. c4 {[%clk 0:03:00.1]}
2... c6 {[%clk 0:03:00.5]} 3. cxd5 {[%clk 0:02:58.8]} 3... cxd5 {[%clk
0:03:00.5]} 4. Nf3 {[%clk 0:02:58.9]} 4... Nf6 {[%clk 0:03:01.1]} 5. Nc3 {[%clk
0:02:58.6]} 5... Nc6 {[%clk 0:03:01.5]} 6. Bf4 {[%clk 0:02:58.9]} 6... a6 {[%clk
0:03:01.9]} 7. e3 {[%clk 0:02:56.5]} 7... Bg4 {[%clk 0:03:02]} 8. Rc1 {[%clk
0:02:56]} 8... Rc8 {[%clk 0:03:00.8]} 9. h3 {[%clk 0:02:55.3]} 9... Bxf3 {[%clk
0:03:01]} 10. Qxf3 {[%clk 0:02:56.1]} 10... e6 {[%clk 0:03:01.7]} 11. Bd3 {[%clk
0:02:55.9]} 11... Bd6 {[%clk 0:03:02.3]} 12. O-O {[%clk 0:02:54.5]} 12... Bxf4
{[%clk 0:03:02.3]} 13. Qxf4 {[%clk 0:02:55.4]} 13... O-O {[%clk 0:03:02.9]} 14.
Na4 {[%clk 0:02:54.3]} 14... Qa5 {[%clk 0:02:23.3]} 15. Nc5 {[%clk 0:02:36.8]}
15... Qb6 {[%clk 0:01:14.8]} 16. b3 {[%clk 0:02:19.2]} 16... Ne7 {[%clk
0:01:03.8]} 17. Rc2 {[%clk 0:02:09]} 17... Rc6 {[%clk 0:01:03.2]} 18. Rfc1
{[%clk 0:02:07.5]} 18... Rfc8 {[%clk 0:01:03.8]} 19. g4 {[%clk 0:01:53.5]} 19...
Qc7 {[%clk 0:00:50.3]} 20. Qxc7 {[%clk 0:01:41]} 20... R8xc7 {[%clk 0:00:49.7]}
21. b4 {[%clk 0:01:26.5]} 21... g5 {[%clk 0:00:14.9]} 22. a4 {[%clk 0:01:26.5]}
22... Rd6 {[%clk 0:00:15.2]} 23. b5 {[%clk 0:01:19.1]} 23... axb5 {[%clk
0:00:16.1]} 24. Bxb5 {[%clk 0:01:19.8]} 24... Rc8 {[%clk 0:00:14.3]} 25. Nxb7
{[%clk 0:01:19.4]} 25... Rxc2 {[%clk 0:00:13.4]} 26. Rxc2 {[%clk 0:01:20.3]}
26... Rb6 {[%clk 0:00:14]} 27. Rc7 {[%clk 0:01:13.7]} 27... Kf8 {[%clk
0:00:14.2]} 28. Nc5 {[%clk 0:01:13.9]} 28... Ng6 {[%clk 0:00:09.5]} 29. Rb7
{[%clk 0:01:06.5]} 1-0